[Event "SS Manhem Chess Week 2019 Goteborg Open"]
[Site "Molnlycke kulturhus, Biblioteksgatan 2, Molnlycke, Sweden"]
[Date "2019.08.16"]
[Round "2.13"]
[White "Carlsson, Ludvig"]
[Black "Wiklund, Johan"]
[Result "1-0"]
[TimeControl "15 minutes + 5 seconds per move from move one (Round 1 - 4) / 90 minutes + 30 seconds per move from move one (Round 5 - 8)"]
[WhiteTitle "CM"]
[WhiteFideId "1727010"]
[BlackFideId "1713817"]
[WhiteElo "2234"]
[BlackElo "1956"]

1. d4 {[%clk 01:30:57]} e6 {[%clk 01:30:59]} 2. Nf3 {[%clk 01:30:57]} Nf6 3.
Bf4 {[%clk 01:30:57]} c5 {[%clk 00:15:07]} {[%emt 29:29:57]} 4. e3 {[%clk
00:15:09]} {[%emt 00:00:02]} Nc6 {[%clk 00:15:05]} {[%emt 00:00:08]} 5. Nbd2
{[%clk 00:15:06]} {[%emt 00:00:08]} d5 {[%clk 00:15:06]} {[%emt 00:00:05]} 6.
c3 {[%clk 00:15:04]} {[%emt 00:00:06]} Bd6 {[%clk 00:15:04]} {[%emt 00:00:07]}
7. Bg3 {[%clk 00:15:06]} {[%emt 00:00:02]} cxd4 {[%clk 00:14:50]} {[%emt
00:00:19]} 8. exd4 {[%clk 00:15:07]} {[%emt 00:00:04]} O-O {[%clk 00:14:44]}
{[%emt 00:00:12]} 9. Bd3 {[%clk 00:15:08]} {[%emt 00:00:04]} Re8 {[%clk
00:14:43]} {[%emt 00:00:06]} 10. Ne5 {[%clk 00:15:08]} {[%emt 00:00:04]} Qc7
{[%clk 00:14:36]} {[%emt 00:00:13]} 11. f4 {[%clk 00:15:00]} {[%emt 00:00:12]}
Nd7 {[%clk 00:14:26]} {[%emt 00:00:15]} 12. Bxh7+ {[%clk 00:14:51]} {[%emt
00:00:14]} Kf8 {[%clk 00:14:12]} {[%emt 00:00:19]} 13. Qh5 {[%clk 00:14:09]}
{[%emt 00:00:46]} Nf6 {[%clk 00:14:07]} {[%emt 00:00:12]} 14. Qh4 {[%clk
00:13:58]} {[%emt 00:00:15]} b5 {[%clk 00:12:08]} {[%emt 00:02:05]} 15. Bd3
{[%clk 00:13:54]} {[%emt 00:00:08]} Kg8 {[%clk 00:10:56]} {[%emt 00:01:17]} 16.
Bxb5 {[%clk 00:13:49]} {[%emt 00:00:10]} Bd7 {[%clk 00:10:47]} {[%emt
00:00:14]} 17. Bd3 {[%clk 00:13:17]} {[%emt 00:00:37]} Rab8 {[%clk 00:10:49]}
{[%emt 00:00:04]} 18. Rb1 {[%clk 00:13:12]} {[%emt 00:00:10]} Qa5 {[%clk
00:10:40]} {[%emt 00:00:15]} 19. Nxd7 {[%clk 00:11:50]} {[%emt 00:01:26]} Nxd7
{[%clk 00:10:43]} {[%emt 00:00:02]} 20. Qh7+ {[%clk 00:11:53]} {[%emt
00:00:02]} Kf8 {[%clk 00:10:47]} {[%emt 00:00:01]} 21. Qh8+ {[%clk 00:11:56]}
{[%emt 00:00:02]} Ke7 {[%clk 00:10:52]} 22. Qxg7 {[%clk 00:11:58]} {[%emt
00:00:03]} Kd8 {[%clk 00:10:41]} {[%emt 00:00:16]} 23. a3 {[%clk 00:11:05]}
{[%emt 00:00:57]} Kc7 {[%clk 00:10:06]} {[%emt 00:00:41]} 24. O-O {[%clk
00:10:08]} {[%emt 00:01:01]} Rg8 {[%clk 00:09:59]} {[%emt 00:00:13]} 25. Qxf7
{[%clk 00:09:53]} {[%emt 00:00:21]} Rbf8 {[%clk 00:09:56]} {[%emt 00:00:08]} 26.
Qxe6 {[%clk 00:09:47]} {[%emt 00:00:10]} Nxd4 {[%clk 00:09:59]} {[%emt
00:00:03]} 27. cxd4 {[%clk 00:09:27]} {[%emt 00:00:24]} Qxd2 {[%clk 00:10:02]}
{[%emt 00:00:02]} 28. Rbc1+ {[%clk 00:08:50]} {[%emt 00:00:42]} 1-0

[Event "SS Manhem Chess Week 2019 Goteborg Open"]
[Site "Molnlycke kulturhus, Biblioteksgatan 2, Molnlycke, Sweden"]
[Date "2019.08.16"]
[Round "2.14"]
[White "Westerlund, Ola"]
[Black "Castrillon Gomez, Melissa"]
[Result "0-1"]
[TimeControl "15 minutes + 5 seconds per move from move one (Round 1 - 4) / 90 minutes + 30 seconds per move from move one (Round 5 - 8)"]
[BlackTitle "WIM"]
[WhiteFideId "1712101"]
[BlackFideId "4402413"]
[WhiteElo "1845"]
[BlackElo "2227"]

1. d4 {[%clk 00:15:08]} Nf6 {[%clk 00:15:05]} {[%emt 00:00:06]} 2. c4 {[%clk
00:15:12]} {[%emt 00:00:01]} c5 {[%clk 00:15:00]} {[%emt 00:00:10]} 3. d5
{[%clk 00:15:09]} {[%emt 00:00:07]} b5 {[%clk 00:15:03]} {[%emt 00:00:02]} 4.
cxb5 {[%clk 00:15:11]} {[%emt 00:00:03]} a6 {[%clk 00:15:07]} {[%emt 00:00:01]}
5. bxa6 {[%clk 00:15:14]} {[%emt 00:00:02]} g6 {[%clk 00:15:11]} {[%emt
00:00:01]} 6. Nc3 {[%clk 00:15:15]} {[%emt 00:00:04]} Bg7 {[%clk 00:15:14]}
{[%emt 00:00:02]} 7. g3 {[%clk 00:14:51]} {[%emt 00:00:29]} O-O {[%clk
00:15:08]} {[%emt 00:00:11]} 8. Bg2 {[%clk 00:14:55]} d6 {[%clk 00:15:12]}
{[%emt 00:00:01]} 9. Nf3 {[%clk 00:14:22]} {[%emt 00:00:38]} Bf5 {[%clk
00:14:56]} {[%emt 00:00:21]} 10. Nh4 {[%clk 00:13:43]} {[%emt 00:00:44]} Bd7
{[%clk 00:13:37]} {[%emt 00:01:25]} 11. e4 {[%clk 00:12:12]} {[%emt 00:01:36]}
Nxa6 {[%clk 00:13:29]} {[%emt 00:00:13]} 12. O-O {[%clk 00:11:57]} {[%emt
00:00:20]} Qb6 {[%clk 00:12:59]} {[%emt 00:00:36]} 13. Bf3 {[%clk 00:11:21]}
{[%emt 00:00:41]} Rfb8 {[%clk 00:12:45]} {[%emt 00:00:19]} 14. Ng2 {[%clk
00:10:56]} {[%emt 00:00:29]} Bh3 {[%clk 00:11:28]} {[%emt 00:01:22]} 15. Re1
{[%clk 00:10:54]} {[%emt 00:00:07]} Bxg2 {[%clk 00:11:24]} {[%emt 00:00:09]} 16.
Kxg2 {[%clk 00:10:53]} {[%emt 00:00:06]} Nd7 {[%clk 00:11:28]} {[%emt
00:00:02]} 17. Be2 {[%clk 00:09:47]} {[%emt 00:01:12]} Qb4 {[%clk 00:11:02]}
{[%emt 00:00:30]} 18. a3 {[%clk 00:08:44]} {[%emt 00:01:08]} Qa5 {[%clk
00:10:38]} {[%emt 00:00:29]} 19. Na2 {[%clk 00:04:52]} {[%emt 00:03:57]} Bxb2
{[%clk 00:10:06]} {[%emt 00:00:37]} 20. Bxb2 {[%clk 00:04:03]} {[%emt
00:00:54]} Rxb2 {[%clk 00:10:10]} {[%emt 00:00:01]} 21. Nc1 {[%clk 00:03:48]}
{[%emt 00:00:20]} Ne5 {[%clk 00:08:25]} {[%emt 00:01:50]} 22. f4 {[%clk
00:03:33]} {[%emt 00:00:20]} Ng4 {[%clk 00:07:59]} {[%emt 00:00:31]} 23. Kg1
{[%clk 00:02:29]} {[%emt 00:01:08]} Ne3 {[%clk 00:07:51]} {[%emt 00:00:12]} 24.
Nb3 {[%clk 00:02:07]} {[%emt 00:00:27]} Qc3 {[%clk 00:06:52]} {[%emt 00:01:04]}
25. Qc1 {[%clk 00:02:03]} {[%emt 00:00:09]} Rxb3 {[%clk 00:06:24]} {[%emt
00:00:33]} 26. Qxc3 {[%clk 00:01:06]} {[%emt 00:01:02]} Rxc3 {[%clk 00:06:27]}
{[%emt 00:00:01]} 27. Rab1 {[%clk 00:00:52]} {[%emt 00:00:20]} Nc2 {[%clk
00:05:27]} {[%emt 00:01:05]} 28. Rec1 {[%clk 00:00:10]} {[%emt 00:00:47]} Nd4
{[%clk 00:05:31]} {[%emt 00:00:01]} 0-1

[Event "SS Manhem Chess Week 2019 Goteborg Open"]
[Site "Molnlycke kulturhus, Biblioteksgatan 2, Molnlycke, Sweden"]
[Date "2019.08.16"]
[Round "2.15"]
[White "Johnson, Daniel"]
[Black "Alfredsson, Daniel"]
[Result "1/2-1/2"]
[TimeControl "15 minutes + 5 seconds per move from move one (Round 1 - 4) / 90 minutes + 30 seconds per move from move one (Round 5 - 8)"]
[WhiteFideId "1721283"]
[BlackFideId "1742205"]
[WhiteElo "2201"]
[BlackElo "1692"]

1. d4 {[%clk 00:15:08]} {[%emt 00:00:01]} d5 {[%clk 00:15:09]} 2. c4 {[%clk
00:15:12]} {[%emt 00:00:02]} c6 {[%clk 00:15:13]} 3. cxd5 {[%clk 00:15:08]}
{[%emt 00:00:09]} cxd5 {[%clk 00:15:17]} {[%emt 00:00:03]} 4. Bf4 {[%clk
00:15:12]} Nc6 {[%clk 00:14:51]} {[%emt 00:00:31]} 5. Nc3 {[%clk 00:15:13]}
{[%emt 00:00:03]} Nf6 {[%clk 00:14:50]} {[%emt 00:00:05]} 6. e3 {[%clk
00:15:17]} {[%emt 00:00:02]} Bf5 {[%clk 00:13:53]} {[%emt 00:01:03]} 7. Qb3
{[%clk 00:15:08]} {[%emt 00:00:14]} Qb6 {[%clk 00:12:48]} {[%emt 00:01:10]} 8.
Qxb6 {[%clk 00:13:15]} {[%emt 00:01:58]} axb6 {[%clk 00:12:49]} {[%emt
00:00:04]} 9. Bb5 {[%clk 00:13:19]} {[%emt 00:00:02]} e6 {[%clk 00:12:13]}
{[%emt 00:00:41]} 10. Rc1 {[%clk 00:13:02]} {[%emt 00:00:22]} Be7 {[%clk
00:11:31]} {[%emt 00:00:47]} 11. Nf3 {[%clk 00:11:52]} {[%emt 00:01:14]} O-O
{[%clk 00:11:12]} {[%emt 00:00:25]} 12. O-O {[%clk 00:11:25]} {[%emt 00:00:31]}
Rfc8 {[%clk 00:10:20]} {[%emt 00:00:57]} 13. h3 {[%clk 00:10:56]} {[%emt
00:00:35]} h6 {[%clk 00:10:10]} {[%emt 00:00:15]} 14. Rfd1 {[%clk 00:10:22]}
{[%emt 00:00:39]} Ne4 {[%clk 00:09:33]} {[%emt 00:00:42]} 15. a3 {[%clk
00:08:46]} {[%emt 00:01:41]} Na5 {[%clk 00:07:36]} {[%emt 00:02:01]} 16. Nxe4
{[%clk 00:06:48]} {[%emt 00:02:02]} Bxe4 {[%clk 00:07:27]} {[%emt 00:00:14]} 17.
Nd2 {[%clk 00:05:59]} {[%emt 00:00:54]} Bc2 {[%clk 00:05:09]} {[%emt 00:02:23]}
18. Re1 {[%clk 00:05:42]} {[%emt 00:00:22]} Nb3 {[%clk 00:05:05]} {[%emt
00:00:09]} 19. Nxb3 {[%clk 00:04:03]} {[%emt 00:01:45]} Bxb3 {[%clk 00:05:08]}
{[%emt 00:00:01]} 20. Bd7 {[%clk 00:04:06]} {[%emt 00:00:02]} Rc4 {[%clk
00:04:47]} {[%emt 00:00:26]} 21. Bb5 {[%clk 00:04:00]} {[%emt 00:00:11]} Rcc8
{[%clk 00:04:37]} {[%emt 00:00:15]} 22. Rc7 {[%clk 00:02:10]} {[%emt 00:01:55]}
Rxc7 {[%clk 00:03:18]} {[%emt 00:01:24]} 23. Bxc7 {[%clk 00:02:12]} {[%emt
00:00:03]} Rc8 {[%clk 00:03:21]} {[%emt 00:00:01]} 24. Bxb6 {[%clk 00:01:35]}
{[%emt 00:00:43]} Rc2 {[%clk 00:03:12]} {[%emt 00:00:14]} 25. Re2 {[%clk
00:01:17]} {[%emt 00:00:24]} Rxe2 {[%clk 00:02:41]} {[%emt 00:00:36]} 26. Bxe2
{[%clk 00:01:20]} {[%emt 00:00:02]} Bc4 {[%clk 00:02:45]} {[%emt 00:00:01]} 27.
Bxc4 {[%clk 00:01:05]} {[%emt 00:00:21]} dxc4 {[%clk 00:02:47]} {[%emt
00:00:02]} 28. Kf1 {[%clk 00:01:08]} {[%emt 00:00:02]} c3 {[%clk 00:02:31]}
{[%emt 00:00:21]} 29. bxc3 {[%clk 00:01:09]} {[%emt 00:00:04]} Bxa3 {[%clk
00:02:34]} {[%emt 00:00:02]} 30. Ke2 {[%clk 00:01:13]} {[%emt 00:00:02]} Kf8
{[%clk 00:02:34]} {[%emt 00:00:04]} 31. Ba5 {[%clk 00:00:52]} {[%emt 00:00:26]}
Ke7 {[%clk 00:02:17]} {[%emt 00:00:22]} 32. Kd3 {[%clk 00:00:43]} {[%emt
00:00:14]} Kd6 {[%clk 00:02:04]} {[%emt 00:00:18]} 33. Kc4 {[%clk 00:00:33]}
{[%emt 00:00:15]} Kc6 {[%clk 00:01:46]} {[%emt 00:00:23]} 34. e4 {[%clk
00:00:23]} {[%emt 00:00:14]} b5+ {[%clk 00:01:16]} {[%emt 00:00:35]} 35. Kb3
{[%clk 00:00:24]} {[%emt 00:00:05]} Bd6 {[%clk 00:01:02]} {[%emt 00:00:19]} 36.
Bb4 {[%clk 00:00:27]} {[%emt 00:00:02]} Bf4 {[%clk 00:00:45]} {[%emt 00:00:21]}
37. g3 {[%clk 00:00:17]} {[%emt 00:00:15]} Bd2 {[%clk 00:00:47]} {[%emt
00:00:03]} 38. Bf8 {[%clk 00:00:09]} {[%emt 00:00:13]} g6 {[%clk 00:00:39]}
{[%emt 00:00:13]} 39. f3 {[%clk 00:00:13]} {[%emt 00:00:02]} Be1 {[%clk
00:00:25]} {[%emt 00:00:20]} 40. g4 {[%clk 00:00:08]} {[%emt 00:00:10]} Bd2
{[%clk 00:00:28]} {[%emt 00:00:02]} 41. c4 {[%clk 00:00:11]} {[%emt 00:00:02]}
bxc4+ {[%clk 00:00:25]} {[%emt 00:00:08]} 42. Kxc4 {[%emt 00:00:07]} Bf4 {[%clk
00:00:18]} {[%emt 00:00:05]} 43. Bb4 {[%clk 00:00:12]} {[%emt 00:00:07]} h5
{[%clk 00:00:19]} {[%emt 00:00:04]} 44. gxh5 {[%clk 00:00:13]} {[%emt
00:00:05]} gxh5 {[%clk 00:00:22]} {[%emt 00:00:01]} 45. d5+ exd5+ {[%clk
00:00:25]} 46. exd5+ {[%clk 00:00:17]} {[%emt 00:00:02]} Kd7 {[%clk 00:00:18]}
{[%emt 00:00:11]} 47. Kd3 {[%clk 00:00:18]} {[%emt 00:00:04]} f5 {[%clk
00:00:14]} {[%emt 00:00:08]} 48. Bc5 {[%clk 00:00:16]} {[%emt 00:00:07]} Be5
{[%clk 00:00:15]} {[%emt 00:00:05]} 49. Ke3 {[%clk 00:00:15]} {[%emt 00:00:06]}
Bc7 {[%clk 00:00:10]} {[%emt 00:00:10]} 50. Bf8 {[%clk 00:00:14]} {[%emt
00:00:06]} Be5 {[%clk 00:00:11]} {[%emt 00:00:04]} 51. Kd3 {[%clk 00:00:13]}
{[%emt 00:00:06]} Bc7 {[%clk 00:00:13]} {[%emt 00:00:03]} 52. Bg7 {[%clk
00:00:10]} {[%emt 00:00:07]} Bf4 {[%clk 00:00:07]} {[%emt 00:00:11]} 53. Kd4
{[%clk 00:00:14]} {[%emt 00:00:02]} Bc7 {[%clk 00:00:09]} {[%emt 00:00:03]} 54.
Be5 {[%clk 00:00:12]} {[%emt 00:00:07]} Bb6+ {[%clk 00:00:12]} {[%emt
00:00:02]} 55. Kd3 {[%clk 00:00:12]} {[%emt 00:00:05]} Bc5 {[%clk 00:00:15]}
{[%emt 00:00:02]} 56. Ke2 {[%clk 00:00:09]} {[%emt 00:00:07]} Bd6 {[%clk
00:00:16]} {[%emt 00:00:04]} 57. f4 {[%clk 00:00:13]} {[%emt 00:00:02]} Be7
{[%clk 00:00:12]} {[%emt 00:00:09]} 58. Kf3 {[%clk 00:00:14]} {[%emt 00:00:04]}
Bh4 {[%clk 00:00:11]} {[%emt 00:00:05]} 59. Bb8 {[%clk 00:00:09]} {[%emt
00:00:10]} Bf6 {[%clk 00:00:10]} {[%emt 00:00:06]} 60. Kg3 {[%clk 00:00:09]}
{[%emt 00:00:05]} Be7 {[%clk 00:00:09]} {[%emt 00:00:07]} 61. Be5 {[%clk
00:00:12]} {[%emt 00:00:02]} Bd8 {[%clk 00:00:10]} {[%emt 00:00:04]} 62. Bg7
{[%clk 00:00:09]} {[%emt 00:00:08]} Kd6 {[%clk 00:00:10]} {[%emt 00:00:04]} 63.
Be5+ {[%clk 00:00:07]} {[%emt 00:00:07]} Kxd5 {[%clk 00:00:12]} {[%emt
00:00:03]} 64. Bb8 {[%clk 00:00:07]} {[%emt 00:00:05]} 1/2-1/2

[Event "SS Manhem Chess Week 2019 Goteborg Open"]
[Site "Molnlycke kulturhus, Biblioteksgatan 2, Molnlycke, Sweden"]
[Date "2019.08.16"]
[Round "2.16"]
[White "Hall, Roland"]
[Black "Arnelind, Mikael"]
[Result "0-1"]
[TimeControl "15 minutes + 5 seconds per move from move one (Round 1 - 4) / 90 minutes + 30 seconds per move from move one (Round 5 - 8)"]
[WhiteFideId "1728628"]
[BlackFideId "1704290"]
[WhiteElo "1430"]
[BlackElo "2187"]

1. e4 {[%clk 00:13:26]} {[%emt 00:01:43]} e6 {[%clk 00:15:08]} {[%emt
00:00:04]} 2. d4 {[%clk 00:13:23]} {[%emt 00:00:08]} d5 {[%clk 00:15:10]}
{[%emt 00:00:02]} 3. Nc3 {[%clk 00:13:09]} {[%emt 00:00:19]} Bb4 {[%clk
00:15:07]} {[%emt 00:00:09]} 4. exd5 {[%clk 00:13:05]} {[%emt 00:00:09]} exd5
{[%clk 00:14:39]} {[%emt 00:00:33]} 5. Bd2 {[%clk 00:13:03]} {[%emt 00:00:07]}
Nc6 {[%clk 00:13:42]} {[%emt 00:01:02]} 6. Nge2 {[%clk 00:13:02]} {[%emt
00:00:04]} Nf6 {[%clk 00:12:39]} {[%emt 00:01:10]} 7. a3 {[%clk 00:13:03]}
{[%emt 00:00:04]} Be7 {[%clk 00:12:27]} {[%emt 00:00:17]} 8. Nf4 {[%clk
00:12:36]} {[%emt 00:00:32]} Nxd4 {[%clk 00:11:21]} {[%emt 00:01:12]} 9. Bd3
{[%clk 00:12:03]} {[%emt 00:00:36]} Ne6 {[%clk 00:10:20]} {[%emt 00:01:08]} 10.
O-O {[%clk 00:11:49]} {[%emt 00:00:18]} c6 {[%clk 00:10:03]} {[%emt 00:00:23]}
11. Re1 {[%clk 00:11:34]} {[%emt 00:00:18]} O-O {[%clk 00:09:42]} {[%emt
00:00:28]} 12. Nce2 {[%clk 00:08:18]} {[%emt 00:03:20]} Nc5 {[%clk 00:09:30]}
{[%emt 00:00:17]} 13. Nc1 {[%clk 00:06:34]} {[%emt 00:01:48]} Nxd3 {[%clk
00:09:26]} {[%emt 00:00:10]} 14. Ncxd3 {[%clk 00:06:24]} {[%emt 00:00:15]} Bg4
{[%clk 00:09:14]} {[%emt 00:00:17]} 15. f3 {[%clk 00:06:06]} {[%emt 00:00:23]}
Bf5 {[%clk 00:08:57]} {[%emt 00:00:23]} 16. Bc3 {[%clk 00:05:31]} {[%emt
00:00:38]} Re8 {[%clk 00:08:07]} {[%emt 00:00:56]} 17. Ne2 {[%clk 00:04:48]}
{[%emt 00:00:48]} c5 {[%clk 00:07:46]} {[%emt 00:00:26]} 18. Ng3 {[%clk
00:04:38]} {[%emt 00:00:14]} Bd7 {[%clk 00:06:25]} {[%emt 00:01:26]} 19. Nf4
{[%clk 00:04:08]} {[%emt 00:00:35]} d4 {[%clk 00:06:21]} {[%emt 00:00:10]} 20.
Bd2 {[%clk 00:03:44]} {[%emt 00:00:29]} Bd6 {[%clk 00:06:16]} {[%emt 00:00:10]}
21. Ne4 {[%clk 00:01:35]} {[%emt 00:02:14]} Nxe4 {[%clk 00:06:04]} {[%emt
00:00:17]} 22. fxe4 {[%clk 00:01:32]} {[%emt 00:00:07]} Bc6 {[%clk 00:05:31]}
0-1

[Event "SS Manhem Chess Week 2019 Goteborg Open"]
[Site "Molnlycke kulturhus, Biblioteksgatan 2, Molnlycke, Sweden"]
[Date "2019.08.16"]
[Round "2.17"]
[White "Mentzoni, Love"]
[Black "Andersson, Lars"]
[Result "0-1"]
[TimeControl "15 minutes + 5 seconds per move from move one (Round 1 - 4) / 90 minutes + 30 seconds per move from move one (Round 5 - 8)"]
[WhiteFideId "1751999"]
[BlackFideId "1706772"]
[WhiteElo "1448"]
[BlackElo "2003"]

1. e4 {[%clk 00:15:07]} {[%emt 00:00:02]} c6 {[%clk 00:15:09]} {[%emt
00:00:02]} 2. d4 {[%clk 00:15:10]} {[%emt 00:00:03]} d5 {[%clk 00:15:13]} 3.
exd5 {[%clk 00:15:12]} {[%emt 00:00:03]} cxd5 {[%clk 00:15:17]} 4. Nf3 {[%clk
00:15:13]} {[%emt 00:00:06]} Nc6 {[%clk 00:15:19]} {[%emt 00:00:02]} 5. Be3
{[%clk 00:15:08]} {[%emt 00:00:10]} Bg4 {[%clk 00:15:19]} {[%emt 00:00:04]} 6.
c3 {[%clk 00:14:53]} {[%emt 00:00:19]} Bxf3 {[%clk 00:14:25]} {[%emt 00:01:00]}
7. Qxf3 {[%clk 00:14:50]} {[%emt 00:00:09]} Nf6 {[%clk 00:14:27]} {[%emt
00:00:02]} 8. Bd3 {[%clk 00:14:52]} {[%emt 00:00:04]} e6 {[%clk 00:14:18]}
{[%emt 00:00:14]} 9. Nd2 {[%clk 00:14:36]} {[%emt 00:00:20]} Rc8 {[%clk
00:14:15]} {[%emt 00:00:09]} 10. O-O {[%clk 00:13:57]} {[%emt 00:00:43]} Be7
{[%clk 00:14:12]} {[%emt 00:00:07]} 11. Qd1 {[%clk 00:13:11]} {[%emt 00:00:52]}
O-O {[%clk 00:14:06]} {[%emt 00:00:11]} 12. Qc2 {[%clk 00:13:08]} {[%emt
00:00:08]} Nb4 {[%clk 00:13:53]} {[%emt 00:00:19]} 13. Qb1 {[%clk 00:12:39]}
{[%emt 00:00:33]} Nxd3 {[%clk 00:13:57]} {[%emt 00:00:01]} 14. Qxd3 {[%clk
00:12:41]} {[%emt 00:00:04]} Qb6 {[%clk 00:13:49]} {[%emt 00:00:13]} 15. b4
{[%clk 00:11:52]} {[%emt 00:00:54]} Rc6 {[%clk 00:13:29]} {[%emt 00:00:26]} 16.
Rfc1 {[%clk 00:11:31]} {[%emt 00:00:25]} Rfc8 {[%clk 00:13:31]} {[%emt
00:00:03]} 17. a4 {[%clk 00:11:15]} {[%emt 00:00:21]} Bxb4 {[%clk 00:12:49]}
{[%emt 00:00:47]} 18. Rab1 {[%clk 00:09:01]} {[%emt 00:02:19]} a5 {[%clk
00:11:34]} {[%emt 00:01:20]} 19. Nf3 {[%clk 00:08:09]} {[%emt 00:00:58]} Qc7
{[%clk 00:10:53]} {[%emt 00:00:46]} 20. Bd2 {[%clk 00:06:18]} {[%emt 00:01:55]}
Bxc3 {[%clk 00:09:22]} {[%emt 00:01:36]} 21. Rxc3 {[%clk 00:05:06]} {[%emt
00:01:17]} Rxc3 {[%clk 00:09:24]} {[%emt 00:00:03]} 22. Bxc3 {[%clk 00:05:10]}
{[%emt 00:00:01]} Qxc3 {[%clk 00:09:27]} {[%emt 00:00:01]} 23. Qd1 {[%clk
00:04:28]} {[%emt 00:00:47]} Rc7 {[%clk 00:09:07]} {[%emt 00:00:26]} 24. h3
{[%clk 00:04:01]} {[%emt 00:00:32]} Ne4 {[%clk 00:08:39]} {[%emt 00:00:33]} 25.
Ne5 {[%clk 00:02:57]} {[%emt 00:01:08]} Nd2 {[%clk 00:06:15]} {[%emt 00:02:29]}
26. Rb5 {[%clk 00:02:30]} {[%emt 00:00:32]} f6 {[%clk 00:05:10]} {[%emt
00:01:11]} 27. Nf3 {[%clk 00:01:26]} {[%emt 00:01:09]} Nxf3+ {[%clk 00:05:04]}
{[%emt 00:00:11]} 28. gxf3 {[%clk 00:01:28]} {[%emt 00:00:02]} Qa3 {[%clk
00:04:21]} {[%emt 00:00:48]} 29. Kg2 {[%clk 00:00:52]} {[%emt 00:00:41]} Rc1
{[%clk 00:03:40]} {[%emt 00:00:46]} 30. Qe2 {[%clk 00:00:43]} {[%emt 00:00:15]}
Rc6 {[%clk 00:02:28]} {[%emt 00:01:17]} 31. Rxb7 {[%clk 00:00:27]} {[%emt
00:00:20]} Qd6 {[%clk 00:01:23]} {[%emt 00:01:10]} 32. Qb5 {[%clk 00:00:14]}
{[%emt 00:00:18]} Rc8 {[%clk 00:00:40]} {[%emt 00:00:48]} 33. Qxa5 {[%clk
00:00:13]} {[%emt 00:00:06]} Qf4 {[%clk 00:00:42]} {[%emt 00:00:03]} 34. Qb5
{[%clk 00:00:08]} {[%emt 00:00:10]} Qg5+ {[%clk 00:00:43]} {[%emt 00:00:04]} 35.
Kh2 {[%clk 00:00:11]} {[%emt 00:00:02]} h6 {[%clk 00:00:37]} {[%emt 00:00:11]}
36. Qd7 {[%clk 00:00:15]} {[%emt 00:00:01]} Rc1 {[%clk 00:00:28]} {[%emt
00:00:14]} 37. Qxe6+ {[%clk 00:00:18]} {[%emt 00:00:02]} Kh7 {[%clk 00:00:28]}
{[%emt 00:00:06]} 38. Qg4 {[%clk 00:00:22]} Ra1 {[%clk 00:00:18]} {[%emt
00:00:15]} 39. Qxg5 {[%clk 00:00:25]} {[%emt 00:00:03]} hxg5 {[%clk 00:00:21]}
{[%emt 00:00:01]} 40. Rb5 {[%clk 00:00:28]} {[%emt 00:00:02]} Rxa4 {[%clk
00:00:23]} {[%emt 00:00:03]} 41. Rxd5 {[%clk 00:00:33]} Ra2 {[%clk 00:00:27]}
{[%emt 00:00:01]} 42. Kg3 {[%clk 00:00:35]} {[%emt 00:00:03]} Kg6 {[%clk
00:00:31]} {[%emt 00:00:02]} 43. Rc5 {[%clk 00:00:26]} {[%emt 00:00:14]} Rd2
{[%clk 00:00:34]} {[%emt 00:00:02]} 44. d5 {[%clk 00:00:24]} {[%emt 00:00:07]}
Rd4 {[%clk 00:00:38]} {[%emt 00:00:01]} 45. d6 {[%clk 00:00:24]} {[%emt
00:00:05]} Rxd6 {[%clk 00:00:41]} {[%emt 00:00:02]} 46. Rc4 {[%clk 00:00:29]}
{[%emt 00:00:01]} f5 {[%clk 00:00:43]} {[%emt 00:00:03]} 47. f4 {[%clk
00:00:28]} {[%emt 00:00:06]} Rd3+ {[%clk 00:00:46]} {[%emt 00:00:02]} 48. f3
{[%clk 00:00:29]} {[%emt 00:00:04]} Kh5 {[%clk 00:00:33]} {[%emt 00:00:18]} 49.
fxg5 {[%clk 00:00:32]} {[%emt 00:00:03]} Kxg5 {[%emt 00:00:01]} 50. h4+ Kh5
{[%clk 00:00:37]} {[%emt 00:00:04]} 51. Rf4 {[%clk 00:00:39]} {[%emt 00:00:02]}
g6 {[%clk 00:00:41]} {[%emt 00:00:02]} 52. Rc4 {[%clk 00:00:41]} {[%emt
00:00:03]} Rd1 {[%emt 00:00:02]} 53. Rc2 {[%emt 00:00:02]} Rg1+ {[%clk
00:00:40]} {[%emt 00:00:01]} 54. Rg2 {[%clk 00:00:45]} {[%emt 00:00:01]} Rxg2+
{[%clk 00:00:43]} {[%emt 00:00:03]} 55. Kxg2 {[%clk 00:00:47]} {[%emt
00:00:01]} Kxh4 {[%clk 00:00:47]} 56. Kh2 {[%clk 00:00:46]} {[%emt 00:00:07]}
g5 {[%clk 00:00:33]} {[%emt 00:00:19]} 57. Kg2 {[%clk 00:00:17]} {[%emt
00:00:34]} Kh5 {[%clk 00:00:37]} {[%emt 00:00:02]} 58. Kh3 {[%clk 00:00:13]}
{[%emt 00:00:08]} Kg6 {[%clk 00:00:38]} {[%emt 00:00:04]} 59. Kg3 {[%clk
00:00:12]} {[%emt 00:00:05]} Kf6 {[%clk 00:00:41]} {[%emt 00:00:02]} 60. Kh3
{[%clk 00:00:15]} {[%emt 00:00:03]} Ke5 {[%clk 00:00:44]} {[%emt 00:00:02]} 61.
Kg2 {[%clk 00:00:19]} Kf4 {[%clk 00:00:48]} {[%emt 00:00:01]} 62. Kf2 {[%clk
00:00:23]} Ke5 {[%clk 00:00:41]} {[%emt 00:00:12]} 63. Ke3 {[%clk 00:00:22]}
{[%emt 00:00:06]} Kd5 {[%clk 00:00:45]} {[%emt 00:00:02]} 64. Kf2 {[%clk
00:00:21]} {[%emt 00:00:05]} Kc4 {[%clk 00:00:22]} {[%emt 00:00:28]} 65. Ke3
{[%clk 00:00:23]} {[%emt 00:00:03]} Kc3 {[%clk 00:00:26]} {[%emt 00:00:01]} 66.
Ke2 {[%clk 00:00:20]} {[%emt 00:00:07]} Kd4 {[%clk 00:00:29]} {[%emt 00:00:01]}
67. Kf2 {[%clk 00:00:13]} {[%emt 00:00:12]} Kd3 {[%clk 00:00:31]} {[%emt
00:00:03]} 68. Kg2 {[%clk 00:00:12]} {[%emt 00:00:06]} Ke3 {[%clk 00:00:29]}
{[%emt 00:00:08]} 69. Kg3 {[%clk 00:00:12]} {[%emt 00:00:05]} Ke2 {[%clk
00:00:30]} {[%emt 00:00:04]} 70. Kg2 {[%clk 00:00:10]} {[%emt 00:00:07]} f4
{[%clk 00:00:30]} {[%emt 00:00:05]} 71. Kg1 {[%clk 00:00:10]} {[%emt 00:00:04]}
Kxf3 {[%clk 00:00:33]} {[%emt 00:00:02]} 0-1